lending/lending_fUSD_20260330
["ID","MTS","AMOUNT","RATE_DAILY","PERIOD"]
[419114521,1774901454943,-500.0,0.0004685,120]
[419114522,1774901454989,-500.0,0.0004685,120]
[419114523,1774901455035,-500.0,0.0004685,120]
[419114524,1774901455079,-500.0,0.0004685,120]
[419114525,1774901455123,-500.0,0.0004685,30]
[419114526,1774901455167,-500.0,0.0004685,120]
[419114527,1774901455214,-500.0,0.0004685,120]
[419114528,1774901455259,-500.0,0.0004685,30]
[419114529,1774901455306,-500.0,0.0004685,120]
[419114530,1774901455351,-500.0,0.0004685,120]
[419114531,1774901455397,-500.0,0.0004685,30]
[419114532,1774901455444,-500.0,0.0004685,120]
[419114533,1774901455495,-500.0,0.0004685,30]
[419114534,1774901455542,-500.0,0.0004685,120]
[419114535,1774901455589,-500.0,0.0004685,30]
[419114536,1774901455637,-500.0,0.0004685,120]
[419114537,1774901455685,-500.0,0.0004685,120]
[419114538,1774901455732,-500.0,0.0004685,30]
[419114539,1774901455780,-500.0,0.0004685,120]
[419114540,1774901455829,-500.0,0.0004685,120]
[419114541,1774901455876,-500.0,0.0004685,120]
[419114542,1774901455922,-500.0,0.0004685,120]
[419114543,1774901455971,-500.0,0.0004685,120]
[419114544,1774901456019,-500.0,0.0004685,120]
[419114545,1774901456067,-500.0,0.0004685,120]
[419114546,1774901456115,-500.0,0.0004685,120]
[419114547,1774901456164,-500.0,0.0004685,120]
[419114548,1774901456214,-500.0,0.0004685,120]
[419114549,1774901456261,-500.0,0.0004685,120]
[419114550,1774901456309,-500.0,0.0004685,120]
[419114551,1774901456357,-500.0,0.0004685,120]
[419114552,1774901456406,-500.0,0.0004685,120]
[419114553,1774901456457,-500.0,0.0004685,120]
[419114554,1774901456509,-500.0,0.0004685,120]
[419114555,1774901456564,-500.0,0.0004685,120]
[419114556,1774901456615,-272.39981989,0.0004685,120]
[419114557,1774901456665,-500.0,0.0004685,120]
[419114558,1774901456714,-500.0,0.0004685,120]
[419114559,1774901456762,-500.0,0.0004685,120]
[419114560,1774901456809,-500.0,0.0004685,120]
[419114561,1774901456855,-500.0,0.0004685,120]
[419114562,1774901456900,-500.0,0.0004685,120]
[419114563,1774901456945,-500.0,0.0004685,120]
[419114564,1774901456989,-500.0,0.0004685,120]
[419114565,1774901457033,-500.0,0.0004685,120]
[419114566,1774901457078,-500.0,0.0004685,120]
[419114567,1774901457127,-500.0,0.0004685,120]
[419114568,1774901457471,-500.0,0.0004685,120]
[419114569,1774901457524,-500.0,0.0004685,120]
[419114570,1774901457573,-500.0,0.0004685,120]
[419114571,1774901457618,-500.0,0.0004685,120]
[419114572,1774901457665,-500.0,0.0004685,120]
[419114573,1774901457713,-500.0,0.0004685,120]
[419114574,1774901457761,-500.0,0.0004685,120]
[419114575,1774901457807,-500.0,0.0004685,120]
[419114576,1774901457852,-500.0,0.0004685,120]
[419114577,1774901457899,-500.0,0.0004685,120]
[419114578,1774901457947,-500.0,0.0004685,120]
[419114579,1774901457992,-500.0,0.0004685,120]
[419114580,1774901458039,-500.0,0.0004685,120]
[419114581,1774901458087,-500.0,0.0004685,120]
[419114582,1774901458135,-567.44,0.0004685,120]
[419114583,1774901458183,-418.38569333,0.0004685,120]
[419114584,1774901458231,-500.0,0.0004685,120]
[419114585,1774901458281,-500.0,0.0004685,120]
[419114586,1774901458334,-500.0,0.0004685,120]
[419114587,1774901458388,-500.0,0.0004685,120]
[419114588,1774901458441,-220.16326713,0.0004685,120]
[419114589,1774901458493,-500.0,0.0004685,120]
[419114590,1774901458543,-500.0,0.0004685,120]
[419114591,1774901458593,-500.0,0.0004685,120]
[419114592,1774901458645,-500.0,0.0004685,120]
[419114593,1774901458697,-500.0,0.0004685,120]
[419114594,1774901458749,-500.0,0.0004685,120]
[419114595,1774901458799,-500.0,0.0004685,120]
[419114596,1774901458848,-500.0,0.0004685,120]
[419114597,1774901458898,-500.0,0.0004685,120]
[419114598,1774901458948,-500.0,0.0004685,120]
[419114599,1774901458998,-500.0,0.0004685,120]
[419114600,1774901459048,-500.0,0.0004685,120]
[419114601,1774901459096,-500.0,0.0004685,120]
[419114602,1774901459142,-500.0,0.0004685,120]
[419114603,1774901459190,-500.0,0.0004685,120]
[419114604,1774901459238,-500.0,0.0004685,120]
[419114605,1774901459288,-500.0,0.0004685,120]
[419114606,1774901459337,-9.18905166,0.0004685,120]
[419114608,1774901512763,177.89,5.477e-05,2]
[419114609,1774901512829,5.37216,6.847e-05,2]
[419114610,1774901512856,172.51784,6.847e-05,2]
[419114611,1774901512900,177.89,8.216e-05,2]
[419114612,1774901513658,-177.89,9.585e-05,2]
[419114613,1774901513668,-500.0,9.661e-05,2]
[419114614,1774901513678,-563.80060104,9.82e-05,2]
[419114615,1774901513687,-297.59705158,0.0001,2]
[419114616,1774901513697,-356.47409688,0.0001,2]
[419114617,1774901513707,-150.0,0.00010434,2]
[419114618,1774901513716,-1118.71,0.00010624,2]
[419114619,1774901513726,-177.89,0.00010955,2]
[419114620,1774901513736,-1500.0,0.00011037,2]
[419114621,1774901513746,-1500.0,0.00011437,2]
[419114622,1774901513756,-1394.74,0.00011452,2]
[419114623,1774901513766,-356.47409688,0.00011551,2]
[419114624,1774901513775,-1457.54,0.00011759,2]
[419114625,1774901513785,-150.0,0.000118,2]
[419114626,1774901513794,-166.66,0.00011931,2]
[419114627,1774901513804,-166.66,0.00012325,2]
[419114628,1774901513820,-150.0,0.00012351,2]
[419114629,1774901513830,-1600.0,0.00012455,2]
[419114630,1774901513840,-166.66,0.00012718,2]
[419114631,1774901513850,-200.0,0.00012875,2]
[419114632,1774901513860,-150.0,0.00013071,2]
[419114633,1774901513869,-166.66,0.00013112,2]
[419114634,1774901513880,-196.9296,0.000132,7]
[419114635,1774901513890,-356.47409688,0.00013202,2]
[419114636,1774901513901,-4531.62030249,0.00013203,2]
[419114637,1774901513912,-698.5295217,0.00013203,2]
[419114638,1774901513922,-4875.64260952,0.00013203,2]
[419114639,1774901513932,-28023.85299271,0.00013203,2]
[419114640,1774901513963,-13796.10140729,0.00013203,2]
[419114641,1774901513973,-344.7663,0.00013203,2]
[419114642,1774901513983,-98416.1199,0.00013203,2]
[419114643,1774901513993,-2500.0,0.00013203,2]
[419114644,1774901514003,-151.0,0.000133,2]
[419114645,1774901514014,-151.0,0.000133,2]
[419114646,1774901514024,-1129.1,0.00013301,2]
[419114647,1774901514034,-1871.06752635,0.00013302,2]
[419114648,1774901514043,-3415.89674017,0.00013302,2]
[419114649,1774901514053,-500.0,0.00013302,2]
[419114650,1774901514062,-500.0,0.00013302,2]
[419114651,1774901514072,-500.0,0.00013302,2]
[419114652,1774901514082,-500.0,0.00013302,2]
[419114653,1774901514092,-500.0,0.00013302,2]
[419114654,1774901514101,-500.0,0.00013302,2]
[419114655,1774901514110,-500.0,0.00013302,2]
[419114656,1774901514119,-500.0,0.00013302,2]
[419114657,1774901514128,-500.0,0.00013302,2]
[419114658,1774901514138,-500.0,0.00013302,2]
[419114659,1774901514148,-500.0,0.00013302,2]
[419114660,1774901514158,-500.0,0.00013302,2]
[419114661,1774901514169,-500.0,0.00013302,2]
[419114662,1774901514180,-500.0,0.00013302,2]
[419114663,1774901514189,-500.0,0.00013302,2]
[419114664,1774901514201,-500.0,0.00013302,2]
[419114665,1774901514211,-500.0,0.00013302,2]
[419114666,1774901514223,-500.0,0.00013302,2]
[419114667,1774901514232,-500.0,0.00013302,2]
[419114668,1774901514242,-500.0,0.00013302,2]
[419114669,1774901514251,-500.0,0.00013302,2]
[419114670,1774901514261,-500.0,0.00013302,2]
[419114671,1774901514270,-521.9976461,0.00013302,2]
[419114672,1774901514279,-500.0,0.00013302,2]
[419114673,1774901514289,-500.0,0.00013302,2]
[419114674,1774901514298,-500.0,0.00013302,2]
[419114675,1774901514309,-500.0,0.00013302,2]
[419114676,1774901514319,-500.0,0.00013302,2]
[419114677,1774901514329,-500.0,0.00013302,2]
[419114678,1774901514339,-500.0,0.00013302,2]
[419114679,1774901514349,-500.0,0.00013302,2]
[419114680,1774901514359,-500.0,0.00013302,2]
[419114681,1774901514368,-500.0,0.00013302,2]
[419114682,1774901514378,-500.0,0.00013302,2]
[419114683,1774901514388,-500.0,0.00013302,2]
[419114684,1774901514397,-500.0,0.00013302,2]
[419114685,1774901514406,-500.0,0.00013302,2]
[419114686,1774901514415,-500.0,0.00013302,2]
[419114687,1774901514425,-500.0,0.00013302,2]
[419114688,1774901514434,-500.0,0.00013302,2]
[419114689,1774901514445,-500.0,0.00013302,2]
[419114690,1774901514454,-500.0,0.00013302,2]
[419114691,1774901514464,-500.0,0.00013302,2]
[419114692,1774901514473,-500.0,0.00013302,2]
[419114693,1774901514482,-500.0,0.00013302,2]
[419114694,1774901514492,-300.0,0.00013302,2]
[419114695,1774901514501,-500.0,0.00013302,2]
[419114696,1774901514510,-500.0,0.00013302,2]
[419114697,1774901514520,-500.0,0.00013302,2]
[419114698,1774901514529,-500.0,0.00013302,2]
[419114699,1774901514538,-500.0,0.00013302,2]
[419114700,1774901514548,-500.0,0.00013302,2]
[419114701,1774901514557,-500.0,0.00013302,2]
[419114702,1774901514566,-101243.7709,0.00013303,2]
[419114703,1774901514574,-500.0,0.00013303,2]
[419114704,1774901515051,-169.48691001,0.00013373,2]
[419114705,1774901515060,-3240.0,0.00013425,2]
[419114706,1774901515069,-4531.62030245,0.00013503,2]
[419114707,1774901515078,-4875.64260945,0.00013503,2]
[419114708,1774901515087,-166.66,0.00013506,2]
[419114709,1774901515097,-1000.0,0.00013533,2]
[419114710,1774901515106,-24367.8406,0.00013533,2]
[419114711,1774901515116,-699.88,0.00013571,2]
[419114712,1774901515125,-698.5295217,0.00013588,2]
[419114713,1774901515134,-184.64,0.00013699,2]
[419114714,1774901515143,-4531.62030245,0.00013802,2]
[419114715,1774901515152,-4875.64260945,0.00013802,2]
[419114716,1774901515162,-154.60391023,0.00013822,2]
[419114717,1774901515171,-166.66,0.000139,2]
[419114718,1774901515181,-698.5295217,0.00013974,2]
[419114719,1774901515190,-500.0,0.00014028,2]
[419114720,1774901515200,-500.0,0.00014028,2]
[419114721,1774901515210,-500.0,0.00014028,2]
[419114722,1774901515219,-500.0,0.00014028,2]
[419114723,1774901515230,-533.28936082,0.00014028,2]
[419114724,1774901515239,-4531.62030245,0.00014102,2]
[419114725,1774901515250,-4875.64260945,0.00014102,2]
[419114726,1774901515259,-150.0,0.00014194,2]
[419114727,1774901515268,-225.628268,0.00014196,2]
[419114728,1774901515277,-1852.42,0.000142,2]
[419114729,1774901515286,-698.5295217,0.00014359,2]
[419114730,1774901515295,-1571.0,0.000144,2]
[419114731,1774901515304,-4531.62030245,0.00014402,2]
[419114732,1774901515313,-4875.64260945,0.00014402,2]
[419114733,1774901515322,-4527.1,0.00014528,2]
[419114734,1774901515331,-258.5418,0.000146,12]
[419114735,1774901515340,-184.64,0.00014612,2]
[419114736,1774901515350,-3204.42,0.00014644,2]
[419114737,1774901515359,-4531.62030245,0.00014701,2]
[419114738,1774901515368,-4875.64260945,0.00014701,2]
[419114739,1774901515378,-1571.0,0.0001472,2]
[419114740,1774901515387,-162.0,0.0001472,2]
[419114741,1774901515396,-698.5295217,0.00014744,2]
[419114742,1774901515405,-1346.0,0.00014814,2]
[419114743,1774901515414,-1045.0,0.00014814,2]
[419114744,1774901515424,-3625.095,0.00014814,2]
[419114745,1774901515433,-927.0,0.00014814,2]
[419114746,1774901515442,-732.0,0.00014814,2]
[419114747,1774901515453,-4531.62030245,0.00015001,2]
[419114748,1774901515463,-4875.64260945,0.00015001,2]
[419114749,1774901515473,-1571.0,0.00015003,2]
[419114750,1774901515484,-1619.0,0.0001504,2]
[419114751,1774901515493,-230.819008,0.00015092,7]
[419114752,1774901515503,-698.5295217,0.00015129,2]
[419114753,1774901515512,-208.152135,0.0001519,7]
[419114754,1774901515521,-4531.62030245,0.00015301,2]
[419114755,1774901515530,-4875.64260945,0.00015301,2]
[419114756,1774901515539,-4000.0,0.00015507,2]
[419114757,1774901515549,-698.5295217,0.00015515,2]
[419114758,1774901515558,-184.64,0.00015525,2]
[419114759,1774901515568,-168.0,0.00015556,2]
[419114760,1774901515577,-4531.62030245,0.000156,2]
[419114761,1774901515586,-4875.64260945,0.000156,2]
[419114762,1774901515596,-855.16862305,0.00015634,2]
[419114763,1774901515605,-2808.0,0.00015643,2]
[419114764,1774901515614,-264.0,0.00015683,2]
[419114765,1774901515623,-168.0,0.00015759,2]
[419114766,1774901515632,-168.0,0.00015763,2]
[419114767,1774901515642,-1000.0,0.00015767,2]
[419114768,1774901515651,-264.0,0.00015773,2]
[419114769,1774901515660,-1000.0,0.00015778,2]
[419114770,1774901515669,-264.0,0.00015787,2]
[419114771,1774901515678,-5000.0,0.000158,2]
[419114772,1774901515688,-264.0,0.00015805,2]
[419114773,1774901515697,-1000.0,0.00015816,2]
[419114774,1774901515707,-1571.0,0.00015842,2]
[419114775,1774901515716,-1000.0,0.00015851,2]
[419114776,1774901515725,-500.0,0.00015872,2]
[419114777,1774901515734,-1000.0,0.00015872,2]
[419114778,1774901515743,-500.0,0.0001589,2]
[419114779,1774901515752,-500.0,0.0001589,2]
[419114780,1774901515761,-500.0,0.0001589,2]
[419114781,1774901515770,-2000.0,0.0001589,2]
[419114782,1774901515779,-4000.0,0.00015895,2]
[419114783,1774901515788,-264.0,0.00015895,2]
[419114784,1774901515798,-9743.35,0.000159,2]
[419114785,1774901515807,-1000.0,0.000159,2]
[419114786,1774901515817,-698.5295217,0.000159,2]
[419114787,1774901515826,-4531.62030245,0.000159,2]
[419114788,1774901515835,-617.03,0.000159,2]
[419114789,1774901515844,-4875.64260945,0.000159,2]
[419114790,1774901515854,-422.13010642,0.000159,2]
[419114791,1774901515864,-1000.0,0.00015911,2]
[419114792,1774901515873,-161.0,0.0001594,2]
[419114793,1774901515883,-500.0,0.00015973,2]
[419114794,1774901515892,-500.0,0.00015973,2]
[419114795,1774901515901,-500.0,0.00015973,2]
[419114796,1774901515910,-418.56315304,0.00015973,2]
[419114797,1774901515919,-500.30149331,0.00015973,2]
[419114798,1774901515928,-500.0,0.00015973,2]
[419114799,1774901515938,-500.0,0.00015973,2]
[419114800,1774901515947,-500.0,0.00015973,2]
[419114801,1774901515957,-500.44640306,0.00015973,2]
[419114802,1774901515967,-527.58662996,0.00015973,2]
[419114803,1774901515977,-1762.8702365,0.00015984,2]
[419114804,1774901515989,-601.5010307,0.00015984,2]
[419114805,1774901515999,-5243.3107019,0.00015984,2]
[419114806,1774901516009,-3378.6704133,0.00015984,2]
[419114807,1774901516018,-8151.8006556,0.00015984,2]
[419114808,1774901516027,-202.31599696,0.00015992,2]
[419114809,1774901516036,-232.22856907,0.00015992,2]
[419114810,1774901516047,-500.0,0.00015999,2]
[419114811,1774901516058,-500.0,0.00015999,2]
[419114812,1774901516069,-500.0,0.00015999,2]
[419114813,1774901516079,-500.0,0.00015999,2]
[419114814,1774901516090,-500.0,0.00015999,2]
[419114815,1774901516101,-500.0,0.00015999,2]
[419114816,1774901516110,-500.0,0.00015999,2]
[419114817,1774901516119,-500.0,0.00015999,2]
[419114818,1774901516128,-500.0,0.00015999,2]
[419114819,1774901516138,-500.0,0.00015999,2]
[419114820,1774901516148,-500.0,0.00015999,2]
[419114821,1774901516158,-500.0,0.00015999,2]
[419114822,1774901516168,-198334.27768234,0.00016,2]
[419114823,1774901517019,-111405.57689762,0.00016,2]
[419114824,1774901517032,-230782.24774983,0.00016,2]
[419114825,1774901517043,-88808.97422354,0.00016,2]
[419114826,1774901517064,-860.2895372,0.00016,2]
[419114827,1774901517076,-1532.35,0.00016,2]
[419114828,1774901517090,-672.700005,0.00016,2]
[419114829,1774901517108,-26755.19714784,0.00016,2]
[419114830,1774901517123,-5719.49229652,0.00016,2]
[419114831,1774901518050,-479.436717,0.00016,2]
[419114832,1774901518062,-3521.18509526,0.00016,2]
[419114833,1774901518074,-810.0,0.00016,2]
[419114834,1774901518089,-436.3749793,0.00016,2]
[419114835,1774901518103,-1165.45033526,0.00016,2]
[419114836,1774901518116,-912.45008157,0.00016,2]
[419114837,1774901518128,-251.76529873,0.00016,2]
[419114838,1774901518143,-1741.48362425,0.00016,2]
[419114839,1774901518401,-269.12478458,0.0001599,2]
[419114840,1774901518412,-269.12478458,0.0001599,2]
[419114841,1774901518424,-269.12478458,0.0001599,2]
[419114842,1774901518433,-346.86424779,0.00016,2]
[419114843,1774901518445,-1934.5078,0.00016,2]
[419114844,1774901518457,-13801.79304624,0.00016,2]
[419114845,1774901518468,-2500.0,0.00016,2]
[419114846,1774901518480,-1947.94603978,0.00016,2]
[419114847,1774901518492,-713.67957342,0.00016,2]
[419114848,1774901518511,-503.44357086,0.00016,2]
[419114849,1774901518719,-66450.00000001,0.00016,2]
[419114850,1774901518749,-5012.40764045,0.00016,2]
[419114851,1774901518761,-6114.49562418,0.00016,2]
[419114852,1774901518773,-3991.08230144,0.00016,2]
[419114853,1774901518795,-16188.8792769,0.00016,2]
[419114854,1774901518807,-24710.27845105,0.00016,2]
[419114855,1774901518827,-89578.42015816,0.00016,2]
[419114856,1774901523519,-2092486.10362046,0.00016,2]
[419114857,1774901523528,-4717639.53271799,0.00016,2]
[419114858,1774901523538,-567785.62325251,0.00016,2]
[419114859,1774901523547,-1390.6372,0.00016,2]
[419114860,1774901523557,-1076820.26148201,0.00016,2]
[419114861,1774901523566,-1120722.32105337,0.00016,2]
[419114862,1774901523575,-646701.03386545,0.00016,2]
[419114863,1774901523585,-371206.57741324,0.00016,2]
[419114864,1774901523594,-150.0,0.00016,2]
[419114865,1774901523603,-500.0,0.00016,2]
[419114866,1774901523612,-500.0,0.00016,2]
[419114867,1774901523622,-500.0,0.00016,2]
[419114868,1774901523631,-500.0,0.00016,2]
[419114869,1774901523641,-500.0,0.00016,2]
[419114870,1774901523650,-500.0,0.00016,2]
[419114871,1774901523659,-500.0,0.00016,2]
[419114872,1774901523669,-199.85,0.00016,3]
[419114873,1774901523678,-1225267.28736836,0.00016,2]
[419114874,1774901523687,-500.0,0.00016,2]
[419114875,1774901523697,-500.0,0.00016,2]
[419114876,1774901523707,-500.0,0.00016,2]
[419114877,1774901523716,-500.0,0.00016,2]
[419114878,1774901523726,-500.0,0.00016,2]
[419114879,1774901523735,-500.0,0.00016,2]
[419114880,1774901523744,-500.0,0.00016,2]
[419114881,1774901523754,-500.0,0.00016,2]
[419114882,1774901523763,-500.0,0.00016,2]
[419114883,1774901523772,-500.0,0.00016,2]
[419114884,1774901523782,-500.0,0.00016,2]
[419114885,1774901523791,-500.0,0.00016,2]
[419114886,1774901523800,-500.0,0.00016,2]
[419114887,1774901523809,-500.0,0.00016,2]
[419114888,1774901523819,-500.0,0.00016,2]
[419114889,1774901523828,-500.0,0.00016,2]
[419114890,1774901523837,-521.3,0.00016,2]
[419114891,1774901523846,-111756.62098616,0.00016,2]
[419114892,1774901523856,-229.70510076,0.00016,2]
[419114893,1774901523866,-1394292.81147614,0.00016,2]
[419114894,1774901523875,-3288901.43663677,0.00016,2]
[419114895,1774901523884,-844687.90953657,0.00016,2]
[419114896,1774901523892,-419260.1137546,0.00016,2]
[419114897,1774901523902,-157294.76164856,0.00016,2]
[419114898,1774901523912,-171.0,0.00016,2]
[419114899,1774901523921,-366193.7942495,0.00016,2]
[419114900,1774901523931,-1000.0,0.00016,2]
[419114901,1774901523940,-1000.0,0.00016,2]
[419114902,1774901523949,-1000.0,0.00016,2]
[419114903,1774901523959,-311.61540575,0.00016,2]
[419114904,1774901523967,-462107.64970655,0.00016,2]
[419114905,1774901523976,-1363325.76403885,0.00016,2]
[419114906,1774901523986,-5800.0,0.00016,2]
[419114907,1774901523995,-1324.28609139,0.00016,2]
[419114908,1774901524004,-200.0,0.00016,2]
[419114909,1774901524014,-151.0,0.00016,2]
[419114910,1774901524023,-151.0,0.00016,2]
[419114911,1774901524033,-151.0,0.00016,2]
[419114912,1774901524042,-151.0,0.00016,2]
[419114913,1774901524051,-151.0,0.00016,2]
[419114914,1774901524060,-151.0,0.00016,2]
[419114915,1774901524069,-151.0,0.00016,2]
[419114916,1774901524078,-151.0,0.00016,2]
[419114917,1774901524087,-151.0,0.00016,2]
[419114918,1774901524096,-151.0,0.00016,2]
[419114919,1774901524106,-210.426705,0.00016,2]
[419114920,1774901524116,-339.4304,0.00016,17]
[419114921,1774901524125,-151.0,0.00016,2]
[419114922,1774901524135,-151.0,0.00016,2]
[419114923,1774901524144,-1524.0,0.00016,2]
[419114924,1774901524154,-712.93598793,0.00016,2]
[419114925,1774901524163,-4303676.82033629,0.00016,2]
[419114926,1774901524172,-151.0,0.00016,2]
[419114927,1774901524181,-151.0,0.00016,2]
[419114928,1774901524191,-151.0,0.00016,2]
[419114929,1774901524201,-284.347872,0.00016,2]
[419114930,1774901524214,-511400.81305618,0.00016,2]
[419114931,1774901524232,-820.54288987,0.00016,2]
[419114932,1774901524258,-917.50269425,0.00016,2]
[419114933,1774901524270,-12116.40644906,0.00016,2]
[419114934,1774901524283,-62690.16833864,0.00016,2]
[419114935,1774901524299,-560.6646397,0.00016,2]
[419114936,1774901524311,-752.48,0.00016,2]
[419114937,1774901524327,-404.75999999,0.00016,2]
[419114938,1774901524338,-12215.20953936,0.00016,2]
[419114939,1774901524350,-123729.51108545,0.00016,2]
[419114940,1774901524359,-151.0,0.00016,2]
[419114941,1774901524368,-168.0,0.00016008,2]
[419114942,1774901524377,-438.1430151,0.00016021,2]
[419114943,1774901524386,-264.0,0.00016029,2]
[419114944,1774901524396,-11654.0,0.00016037,2]
[419114945,1774901524406,-264.0,0.00016111,2]
[419114946,1774901524415,-154.60391023,0.00016126,2]
[419114947,1774901524424,-300.0,0.00016138,2]
[419114948,1774901524433,-168.0,0.00016139,2]
[419114949,1774901524442,-264.0,0.00016156,2]
[419114950,1774901524452,-200.0,0.0001616,2]
[419114951,1774901524460,-249.0,0.00016162,2]
[419114952,1774901524469,-5000.00127607,0.000162,5]
[419114953,1774901524478,-161.0,0.0001626,2]
[419114954,1774901524488,-4000.0,0.00016282,2]
[419114955,1774901524497,-200.0,0.00016322,2]
[419114956,1774901524506,-295.59396149,0.00016328,2]
[419114957,1774901524515,-317.43482454,0.00016328,2]
[419114958,1774901524524,-200.0,0.0001634,2]
[419114959,1774901524534,-500.00000001,0.00016341,2]
[419114960,1774901524543,-309.38799956,0.00016358,2]
[419114961,1774901524553,-1061.85698489,0.00016358,2]
[419114962,1774901524562,-359.69659513,0.00016376,30]
[419114963,1774901524572,-264.0,0.00016391,2]
[419114964,1774901524582,-2000.0,0.000164,2]
[419114965,1774901524591,-161.0,0.00016403,2]
[419114966,1774901524601,-3430.2,0.00016438,2]
[419114967,1774901524610,-1072.55,0.00016438,2]
[419114968,1774901524619,-605.31,0.00016438,2]
[419114969,1774901524629,-1795.36,0.00016438,2]
[419114970,1774901524638,-551.08,0.00016438,2]
[419114971,1774901524648,-150.0,0.00016438,2]
[419114972,1774901524657,-150.0,0.00016438,2]
[419114973,1774901524666,-150.0,0.00016438,2]
[419114974,1774901524676,-150.0,0.00016438,2]
[419114975,1774901524685,-150.0,0.00016438,2]
[419114976,1774901524695,-150.0,0.00016438,2]
[419114977,1774901524705,-150.0,0.00016438,2]
[419114978,1774901524714,-150.0,0.00016438,2]
[419114979,1774901524724,-150.0,0.00016438,2]
[419114980,1774901524734,-1726.0,0.00016438,2]
[419114981,1774901524744,-150.0,0.00016438,2]
[419114982,1774901524753,-1726.0,0.00016438,2]
[419114983,1774901524762,-150.0,0.00016438,2]
[419114984,1774901524772,-1726.0,0.00016438,2]
[419114985,1774901524781,-1726.0,0.00016438,2]
[419114986,1774901524790,-150.0,0.00016438,2]
[419114987,1774901524799,-1726.0,0.00016438,2]
[419114988,1774901524808,-150.0,0.00016438,2]
[419114989,1774901524819,-1726.0,0.00016438,2]
[419114990,1774901524827,-150.0,0.00016438,2]
[419114991,1774901524837,-1726.0,0.00016438,2]
[419114992,1774901524846,-884.53073547,0.00016438,2]
[419114993,1774901524859,-841.46926453,0.00016438,2]
[419114994,1774901524868,-150.0,0.00016438,2]
[419114995,1774901524878,-179.5672861,0.00016438,2]
[419115022,1774902437134,-329.12,9.742e-05,2]
[419115023,1774902437159,-1200.0,9.997e-05,2]
[419115024,1774902437181,-289.8006139,9.998e-05,2]
[419115025,1774902437204,-408.0,9.998e-05,2]
[419115026,1774902437226,-5000.0,9.999e-05,2]
[419115027,1774902437249,-333.23200423,0.0001,2]
[419115028,1774902437274,-300.0,0.00010431,2]
[419115029,1774902437296,-300.0,0.00010431,2]
[419115030,1774902437318,-5000.0,0.00010432,2]
[419115031,1774902437341,-5000.0,0.00010432,2]
[419115032,1774902437363,-5000.0,0.00010432,2]
[419115033,1774902437384,-150.0,0.000108,2]
[419115034,1774902437406,-150.0,0.00010996,2]
[419115035,1774902437429,-193.0,0.00010997,2]
[419115036,1774902437451,-250.0,0.00010997,2]
[419115037,1774902437474,-1680.0,0.00010997,2]
[419115038,1774902437496,-250.0,0.00010998,2]
[419115039,1774902437518,-250.0,0.00010998,2]
[419115040,1774902437540,-600.0,0.00010998,2]
[419115041,1774902437565,-600.0,0.00010998,2]
[419115042,1774902437588,-600.0,0.00010998,2]
[419115043,1774902437610,-600.0,0.00010998,2]
[419115044,1774902437632,-709.04634182,0.00010998,2]
[419115045,1774902437654,-5000.0,0.00010998,2]
[419115046,1774902437677,-209.57527067,0.00010998,2]
[419115053,1774902631950,-271.0,0.00010657,2]